bitfinex/quotes_BTCUSD_20230905
["timestamp","ask_amount","ask_price","bid_price","bid_amount"]
[1693926461779,0.53391298,25778.0,25776.0,2.327745]
[1693926462190,0.55791298,25778.0,25776.0,2.328745]
[1693926462403,0.2737,25778.0,25776.0,2.328745]
[1693926462614,0.2967,25778.0,25776.0,2.330745]
[1693926464332,0.2967,25778.0,25776.0,2.485995]
[1693926464737,0.047,25778.0,25776.0,2.485995]
[1693926464941,0.047,25778.0,25776.0,2.8224463]
[1693926465325,0.047,25778.0,25776.0,2.485995]
[1693926465780,0.047,25778.0,25776.0,2.595995]
[1693926468156,0.047,25778.0,25777.0,0.38664527]
[1693926468363,0.047,25778.0,25777.0,3.11690027]
[1693926468788,0.03535449,25778.0,25777.0,3.11690027]
[1693926468959,0.023,25778.0,25777.0,3.50354554]
[1693926469166,0.4253,25783.0,25777.0,3.50354554]
[1693926469391,0.63940956,25783.0,25778.0,0.41525811]
[1693926469563,0.63940956,25783.0,25779.0,3.103246]
[1693926469763,0.24189725,25782.0,25779.0,3.21850411]
[1693926469964,0.24189725,25782.0,25779.0,3.103246]
[1693926470168,0.4253,25783.0,25779.0,1.55162]
[1693926470169,0.22127782,25780.0,25779.0,1.55162]
[1693926470539,0.1026,25781.0,25779.0,2.327445]
[1693926470748,0.32980254,25782.0,25779.0,2.327445]
[1693926470950,0.48420254,25782.0,25779.0,2.327445]
[1693926471369,0.48420254,25782.0,25779.0,2.329445]
[1693926471370,0.021,25780.0,25779.0,2.329445]
[1693926472030,0.27824258,25781.0,25779.0,1.55162]
[1693926472210,0.27824258,25781.0,25779.0,1.55562]
[1693926472410,0.38084258,25781.0,25779.0,1.55562]
[1693926472565,0.38084258,25781.0,25779.0,1.55362]
[1693926472967,0.024,25780.0,25779.0,1.55562]
[1693926473174,0.38084258,25781.0,25779.0,1.55362]
[1693926473577,0.40484258,25781.0,25779.0,1.55562]
[1693926474090,0.40484258,25781.0,25779.0,1.55362]
[1693926474502,0.021,25780.0,25779.0,1.55562]
[1693926474878,0.38084258,25781.0,25779.0,1.55162]
[1693926475300,0.024,25780.0,25779.0,1.55562]
[1693926475703,0.024,25780.0,25779.0,1.55362]
[1693926476130,0.045,25780.0,25779.0,1.55562]
[1693926476788,0.021,25780.0,25779.0,1.55362]
[1693926477219,0.021,25780.0,25779.0,0.002]
[1693926477220,0.58970351,25780.0,25779.0,0.002]
[1693926477428,1.55899851,25780.0,25779.0,0.002]
[1693926477840,2.33479351,25780.0,25779.0,0.002]
[1693926478231,2.33479351,25780.0,25779.0,0.004]
[1693926478538,2.76684579,25780.0,25779.0,0.002]
[1693926478904,2.79084579,25780.0,25779.0,0.004]
[1693926481716,0.60348626,25780.0,25779.0,0.004]
[1693926486384,1.57328126,25780.0,25779.0,0.004]
[1693926486582,0.79748626,25780.0,25779.0,0.004]
[1693926487030,0.60398626,25780.0,25779.0,0.004]
[1693926487240,0.239,25780.0,25779.0,2.331475]
[1693926487624,0.045,25780.0,25779.0,2.331475]
[1693926490372,0.1476,25780.0,25779.0,1.55565]
[1693926491127,0.37689905,25780.0,25779.0,0.779825]
[1693926491325,0.37689905,25780.0,25779.0,0.004]
[1693926494984,0.1476,25780.0,25779.0,0.004]
[1693926495187,0.1476,25780.0,25779.0,0.779825]
[1693926495828,0.045,25780.0,25779.0,2.71812027]
[1693926496252,0.045,25780.0,25779.0,3.10476554]
[1693926496534,0.045,25780.0,25779.0,3.01812027]
[1693926497053,0.024,25780.0,25779.0,3.01612027]
[1693926497255,0.043,25780.0,25779.0,3.01812027]
[1693926497705,0.019,25780.0,25779.0,3.01612027]
[1693926497898,0.043,25780.0,25779.0,3.01812027]
[1693926506332,0.9892,25787.0,25781.0,0.4089]
[1693926506537,0.9892,25787.0,25783.0,0.1026]
[1693926506747,1.23452158,25787.0,25784.0,1.57757138]
[1693926506939,0.24532158,25787.0,25784.0,3.12890738]
[1693926507141,0.24473397,25786.0,25784.0,3.78931727]
[1693926507265,0.26751623,25785.0,25784.0,1.851336]
[1693926507467,0.26751623,25785.0,25784.0,2.57825487]
[1693926507663,0.26751623,25785.0,25784.0,3.35392887]
[1693926507861,0.1286,25787.0,25784.0,3.35392887]
[1693926508060,0.1266,25787.0,25784.0,3.50911787]
[1693926508260,0.35178552,25787.0,25784.0,3.50911787]
[1693926508462,0.35178552,25787.0,25785.0,0.24427894]
[1693926508787,0.024,25786.0,25784.0,3.17084427]
[1693926508962,0.024,25786.0,25784.0,3.16884427]
[1693926509162,0.33892728,25788.0,25784.0,3.16884427]
[1693926509799,0.33892728,25788.0,25785.0,0.38664527]
[1693926510005,0.23632728,25788.0,25786.0,3.102456]
[1693926510249,0.23632728,25788.0,25786.0,3.87574654]
[1693926510667,0.024,25787.0,25786.0,3.87574654]
[1693926510875,0.002,25788.0,25786.0,3.87574654]
[1693926511081,0.026,25788.0,25786.0,3.87774654]
[1693926511488,0.024,25788.0,25786.0,3.87774654]
[1693926511688,0.026,25788.0,25786.0,3.49310127]
[1693926513179,0.026,25788.0,25787.0,0.38664527]
[1693926513316,0.026,25788.0,25787.0,2.71339727]
[1693926513939,0.0198,25790.0,25787.0,2.78131727]
[1693926514141,0.0198,25790.0,25788.0,0.3]
[1693926514347,0.0198,25790.0,25789.0,2.71321727]
[1693926514618,0.0198,25790.0,25789.0,3.78874127]
[1693926514817,0.38754699,25790.0,25789.0,2.23769327]
[1693926515228,0.38754699,25790.0,25789.0,1.851048]
[1693926515676,0.41254699,25790.0,25789.0,1.853048]
[1693926516136,0.1474,25790.0,25789.0,1.853048]
[1693926516346,0.1474,25790.0,25789.0,2.628572]
[1693926516794,0.1474,25790.0,25789.0,1.963048]
[1693926517370,0.1494,25790.0,25789.0,2.740572]
[1693926518814,0.1494,25790.0,25789.0,3.12721727]
[1693926519192,0.1494,25790.0,25789.0,3.51386254]
[1693926519820,0.1494,25790.0,25789.0,3.12721727]
[1693926521389,0.43787685,25790.0,25789.0,1.189524]
[1693926521566,0.1494,25790.0,25789.0,1.189524]
[1693926521793,0.1494,25790.0,25789.0,1.965048]
[1693926522179,0.0468,25790.0,25789.0,3.12721727]
[1693926522407,0.0468,25790.0,25789.0,2.35169327]
[1693926522556,0.1494,25790.0,25789.0,2.35169327]
[1693926522769,0.1474,25790.0,25789.0,2.34969327]
[1693926523175,0.41813944,25790.0,25789.0,0.414]
[1693926523560,0.39113944,25790.0,25789.0,1.205524]
[1693926523932,0.41513944,25790.0,25789.0,1.207524]
[1693926524131,0.41513944,25790.0,25789.0,2.758572]
[1693926524132,0.1464,25790.0,25789.0,2.758572]
[1693926524335,0.1224,25790.0,25789.0,3.14321727]
[1693926524543,0.0458,25790.0,25789.0,3.53386254]
[1693926524750,0.32861052,25790.0,25789.0,2.75966091]
[1693926524953,0.43121052,25790.0,25789.0,2.75966091]
[1693926525757,0.43121052,25790.0,25789.0,1.98413691]
[1693926526824,0.1484,25790.0,25789.0,2.75966091]
[1693926527226,0.0458,25790.0,25789.0,3.14630618]
[1693926527446,0.0458,25790.0,25789.0,2.37078218]
[1693926527447,0.44711718,25790.0,25789.0,2.37078218]
[1693926528581,0.0458,25790.0,25789.0,3.96185145]
[1693926528782,0.0458,25790.0,25789.0,3.57520618]
[1693926528990,0.0198,25794.0,25793.0,0.5489]
[1693926529192,0.0198,25794.0,25793.0,4.23330938]
[1693926529426,0.0198,25794.0,25793.0,5.41473338]
[1693926529595,0.09274913,25800.0,25796.0,0.02]
[1693926529795,0.39197589,25800.0,25796.0,5.12737338]
[1693926529976,0.39197589,25800.0,25796.0,5.01211527]
[1693926530203,0.2621004,25799.0,25796.0,4.60344654]
[1693926530402,0.28726981,25798.0,25796.0,4.19454654]
[1693926530754,0.24747295,25799.0,25796.0,3.82790127]
[1693926530951,0.09274913,25800.0,25799.0,0.02]
[1693926531159,0.09274913,25800.0,25799.0,3.52753727]
[1693926531355,0.09274913,25800.0,25799.0,3.82753727]
[1693926531756,0.48892697,25800.0,25799.0,1.095223]
[1693926531964,0.48892697,25800.0,25799.0,3.03231427]
[1693926531965,0.09274913,25800.0,25799.0,3.03231427]
[1693926532538,0.09274913,25800.0,25799.0,3.03431427]
[1693926533184,0.33722636,25800.0,25799.0,3.03631427]
[1693926533385,0.43982636,25800.0,25799.0,2.26109127]
[1693926533706,0.43982636,25800.0,25799.0,1.097223]
[1693926533911,0.34707723,25800.0,25799.0,1.095223]
[1693926534045,0.34707723,25800.0,25799.0,1.097223]
[1693926534248,0.34707723,25800.0,25799.0,1.099223]
[1693926534446,0.34707723,25800.0,25799.0,1.097223]
[1693926534650,0.34707723,25800.0,25799.0,0.322]
[1693926534855,0.34707723,25800.0,25799.0,0.78153691]
[1693926535330,1.93488823,25802.0,25801.0,0.14202904]
[1693926535530,2.03748823,25802.0,25801.0,0.16202904]
[1693926536495,2.2779691,25802.0,25801.0,0.16202904]
[1693926537233,1.5028161,25802.0,25801.0,0.16402904]
[1693926537432,1.5028161,25802.0,25801.0,0.16602904]
[1693926538346,1.5028161,25802.0,25801.0,0.27602904]
[1693926538840,1.83847181,25802.0,25801.0,0.27602904]
[1693926539076,1.5028161,25802.0,25801.0,0.27602904]
[1693926539206,1.4499161,25802.0,25801.0,0.27602904]
[1693926539791,1.4499161,25802.0,25801.0,0.25602904]
[1693926540154,1.98458923,25802.0,25801.0,0.25602904]
[1693926540292,2.75974323,25802.0,25801.0,0.25602904]
[1693926540709,3.0312073,25802.0,25801.0,0.25602904]
[1693926542835,2.75974323,25802.0,25801.0,0.25602904]
[1693926543079,3.1463885,25802.0,25801.0,0.25602904]
[1693926543690,2.99694096,25802.0,25801.0,0.25602904]
[1693926545066,2.75974323,25802.0,25801.0,0.25602904]
[1693926545248,2.85974323,25802.0,25801.0,0.25602904]
[1693926545443,3.3689885,25802.0,25801.0,0.25602904]
[1693926547401,3.3589885,25802.0,25801.0,0.25602904]
[1693926547600,3.74563377,25802.0,25801.0,0.25402904]
[1693926547832,3.2563885,25802.0,25801.0,0.25202904]
[1693926547989,3.55627341,25802.0,25801.0,0.25402904]
[1693926548196,3.1103885,25802.0,25801.0,0.25602904]
[1693926548385,3.0643885,25802.0,25801.0,0.25202904]
[1693926548606,3.2563885,25802.0,25801.0,0.25202904]
[1693926549891,3.2793885,25802.0,25801.0,0.25402904]
[1693926550098,3.3023885,25802.0,25801.0,0.25602904]
[1693926550298,3.2793885,25802.0,25801.0,0.25402904]
[1693926550521,3.52590807,25802.0,25801.0,0.25402904]
[1693926550964,2.2441088,25802.0,25801.0,0.25402904]
[1693926551173,3.0192628,25802.0,25801.0,0.25402904]
[1693926551380,3.0422628,25802.0,25801.0,0.25602904]
[1693926553097,0.77961957,25802.0,25801.0,0.25602904]
[1693926554256,0.4305,25802.0,25801.0,0.27602904]
[1693926554888,0.79367704,25802.0,25801.0,0.27602904]
[1693926555325,0.4305,25802.0,25801.0,0.27602904]
[1693926555567,0.4305,25802.0,25801.0,0.434]
[1693926556406,0.4305,25802.0,25801.0,0.82064527]
[1693926556617,0.4305,25802.0,25801.0,0.84064527]
[1693926556817,0.4305,25802.0,25801.0,0.82064527]
[1693926557438,0.4075,25802.0,25801.0,0.81864527]
[1693926557634,0.4285,25802.0,25801.0,0.82064527]
[1693926557849,0.77655084,25802.0,25801.0,0.134]
[1693926558052,0.87915084,25802.0,25801.0,0.134]
[1693926558461,0.61491606,25802.0,25801.0,0.114]
[1693926558662,0.84469636,25802.0,25801.0,0.114]
[1693926558877,0.89106817,25802.0,25801.0,0.114]
[1693926559022,0.5311,25802.0,25801.0,0.114]
[1693926559249,0.6111,25802.0,25801.0,0.114]
[1693926559466,0.99774527,25802.0,25801.0,0.114]
[1693926560085,0.99774527,25802.0,25795.0,0.155134]
[1693926560086,0.08,25799.0,25795.0,0.155134]
[1693926560283,0.80280338,25798.0,25794.0,0.02]
[1693926560483,0.1026,25795.0,25792.0,0.02]
[1693926560852,0.1026,25793.0,25792.0,0.02]
[1693926561043,0.25725811,25793.0,25792.0,0.25065457]
[1693926561239,0.1026,25793.0,25792.0,0.25065457]
[1693926561552,0.1026,25793.0,25792.0,0.02]
[1693926562386,0.3845,25797.0,25794.0,0.02]
[1693926562524,0.1026,25796.0,25794.0,0.13525811]
[1693926562721,0.1026,25796.0,25794.0,0.02]
[1693926562992,0.22146496,25795.0,25794.0,0.02]
[1693926563384,0.22546496,25795.0,25794.0,0.02]
[1693926563968,0.1026,25796.0,25794.0,0.02]
[1693926564353,0.002,25795.0,25794.0,0.044]
[1693926564936,0.002,25795.0,25794.0,0.024]
[1693926565573,0.34202899,25796.0,25793.0,0.02]
[1693926565775,0.35922418,25799.0,25796.0,0.02]
[1693926565988,0.35922418,25799.0,25796.0,0.13525811]
[1693926566193,0.27404681,25798.0,25796.0,0.13525811]
[1693926566416,0.27404681,25798.0,25796.0,0.02]
[1693926566581,0.36118939,25797.0,25796.0,0.02]
[1693926566783,0.1026,25799.0,25796.0,0.02]
[1693926567191,0.023,25802.0,25801.0,0.02]
[1693926567388,0.29402856,25802.0,25801.0,0.13525811]
[1693926567592,0.29402856,25802.0,25801.0,0.02]
[1693926567892,0.39662856,25802.0,25801.0,0.02]
[1693926568685,0.39662856,25802.0,25801.0,0.13]
[1693926568886,0.29402856,25802.0,25801.0,0.13]
[1693926569088,0.37609142,25802.0,25801.0,0.13]
[1693926569406,0.47869142,25802.0,25801.0,0.13]
[1693926570084,0.47869142,25802.0,25801.0,0.02]
[1693926570218,0.50369142,25802.0,25801.0,0.022]
[1693926571599,0.23266286,25802.0,25801.0,0.002]
[1693926571787,0.61930813,25802.0,25801.0,0.002]
[1693926572161,0.87196256,25802.0,25801.0,0.002]
[1693926572812,0.99196256,25802.0,25801.0,0.002]
[1693926573779,1.09456256,25802.0,25801.0,0.002]
[1693926573978,1.16614256,25802.0,25801.0,0.002]
[1693926574187,1.20061756,25802.0,25801.0,0.002]
[1693926574393,1.20061756,25802.0,25794.0,0.09237342]
[1693926574394,0.12,25799.0,25794.0,0.11237342]
[1693926574606,0.1026,25795.0,25794.0,0.11237342]
[1693926574806,0.30596811,25795.0,25794.0,0.11237342]
[1693926575019,0.15131,25795.0,25794.0,0.02]
[1693926575672,0.15131,25795.0,25794.0,0.043]
[1693926576074,0.15131,25795.0,25794.0,0.02]
[1693926576075,0.1026,25795.0,25794.0,0.02]
[1693926576517,0.1036,25795.0,25794.0,0.034]
[1693926576719,0.31470507,25795.0,25794.0,0.034]
[1693926580953,0.58014527,25789.0,25788.0,0.02]
[1693926581147,0.25716512,25788.0,25787.0,0.10362756]
[1693926581375,0.35976512,25788.0,25781.0,0.12]
[1693926581548,0.15465811,25787.0,25781.0,0.17823403]
[1693926581756,0.1026,25786.0,25781.0,0.17823403]
[1693926581951,0.15465811,25785.0,25782.0,0.3]
[1693926582299,0.1026,25786.0,25782.0,0.3]
[1693926582451,0.25725811,25786.0,25781.0,0.42]
[1693926582655,0.1026,25785.0,25781.0,0.3]
[1693926582862,0.25725811,25785.0,25781.0,0.34]
[1693926583176,0.1026,25785.0,25781.0,0.34]
[1693926583900,0.23465932,25784.0,25781.0,0.3]
[1693926584679,0.23465932,25784.0,25780.0,0.42]
[1693926584881,0.31653148,25784.0,25780.0,0.80664527]
[1693926585062,0.31653148,25784.0,25781.0,0.009]
[1693926585261,0.23465932,25784.0,25781.0,0.009]
[1693926585526,0.23465932,25784.0,25780.0,0.80664527]
[1693926586261,0.23465932,25784.0,25780.0,0.76664527]
[1693926586461,0.23465932,25784.0,25780.0,0.70664527]
[1693926586664,0.31653148,25784.0,25780.0,0.70664527]
[1693926586876,0.31653148,25784.0,25778.0,0.23124261]
[1693926586877,0.1026,25782.0,25778.0,0.23124261]
[1693926587093,0.25725811,25782.0,25780.0,0.009]
[1693926587291,0.1026,25782.0,25780.0,0.009]
[1693926587659,0.3607,25783.0,25778.0,0.61788788]
[1693926587860,0.62163126,25783.0,25780.0,0.009]
[1693926588001,0.46697315,25783.0,25780.0,0.009]
[1693926588406,0.46697315,25783.0,25779.0,0.3]
[1693926588849,0.002,25782.0,25780.0,0.009]
[1693926589056,0.1026,25781.0,25780.0,0.009]
[1693926589464,0.17362009,25781.0,25780.0,0.009]
[1693926590209,0.17362009,25781.0,25779.0,0.3]
[1693926590421,0.17362009,25781.0,25778.0,0.39247745]
[1693926590884,0.1026,25781.0,25779.0,0.009]
[1693926591100,0.25774913,25782.0,25779.0,0.309]
[1693926591309,0.1026,25781.0,25779.0,0.309]
[1693926591524,0.1026,25781.0,25779.0,0.3]
[1693926591730,0.72334328,25781.0,25779.0,0.3]
[1693926592161,0.72334328,25781.0,25778.0,0.309]
[1693926592367,0.72334328,25781.0,25778.0,0.009]
[1693926592368,0.1026,25779.0,25778.0,0.009]
[1693926593328,0.1026,25779.0,25776.0,0.09247745]
[1693926593928,0.194,25781.0,25777.0,0.48924527]
[1693926594127,0.002,25781.0,25778.0,0.02]
[1693926594455,0.3671006,25784.0,25779.0,0.38664527]
[1693926594654,0.24705038,25783.0,25780.0,0.11525811]
[1693926594828,0.24705038,25783.0,25779.0,0.38664527]
[1693926595612,0.1885,25786.0,25780.0,0.63413811]
[1693926595846,0.50942017,25788.0,25783.0,0.1026]
[1693926596051,0.24432017,25788.0,25784.0,0.11525811]
[1693926596763,0.1026,25789.0,25784.0,0.11525811]
[1693926596981,0.1026,25789.0,25785.0,2.326887]
[1693926597197,0.6372,25790.0,25786.0,0.1026]
[1693926597401,0.6372,25790.0,25787.0,2.326734]
[1693926597623,0.015,25788.0,25787.0,2.326734]
[1693926597842,0.015,25788.0,25787.0,2.71337927]
[1693926598002,0.015,25788.0,25787.0,3.13597927]
[1693926598199,0.28675749,25793.0,25787.0,3.13597927]
[1693926598400,0.024,25790.0,25788.0,0.82190338]
[1693926598642,0.024,25790.0,25789.0,2.326572]
[1693926598851,0.024,25790.0,25789.0,2.73321727]
[1693926599159,0.024,25790.0,25789.0,1.851048]
[1693926599359,0.024,25790.0,25789.0,1.075524]
[1693926599565,0.1402944,25790.0,25789.0,1.075524]
[1693926600137,0.1162944,25790.0,25789.0,1.075524]
[1693926600734,0.878065,25791.0,25789.0,1.075524]
[1693926601058,0.878065,25791.0,25789.0,0.3]
[1693926601267,0.35390269,25790.0,25789.0,0.001]
[1693926601633,2.68038469,25790.0,25789.0,0.001]
[1693926601836,3.04731956,25790.0,25787.0,0.3]
[1693926602039,0.1026,25788.0,25787.0,0.3]
[1693926602790,0.1026,25788.0,25787.0,0.68664527]
[1693926602995,0.4841,25792.0,25787.0,0.68664527]
[1693926602996,0.26418748,25794.0,25787.0,3.01339727]
[1693926603219,0.59412689,25794.0,25788.0,0.52190338]
[1693926603432,0.024,25791.0,25789.0,2.6275]
[1693926603658,0.024,25791.0,25790.0,0.38664527]
[1693926603839,0.59412689,25794.0,25790.0,2.71312727]
[1693926603998,0.59412689,25794.0,25790.0,2.82838538]
[1693926604364,0.31340339,25793.0,25790.0,2.82838538]
[1693926604562,0.31340339,25793.0,25790.0,2.71312727]
[1693926605200,0.31340339,25793.0,25790.0,2.71412727]
[1693926605390,0.61812689,25794.0,25790.0,2.71412727]
[1693926605534,0.35393941,25794.0,25790.0,2.71412727]
[1693926605739,0.024,25794.0,25791.0,0.21187811]
[1693926605938,0.024,25794.0,25792.0,3.78838127]
[1693926606370,0.024,25794.0,25793.0,0.83665811]
[1693926606573,0.5097567,25801.0,25793.0,3.82823727]
[1693926606918,0.22281616,25800.0,25795.0,3.10128]
[1693926607068,0.22281616,25800.0,25796.0,0.80190338]
[1693926607284,0.22281616,25800.0,25798.0,1.550506]
[1693926607461,0.32724567,25801.0,25798.0,1.550506]
[1693926607666,0.24797121,25800.0,25797.0,1.550525]
[1693926607840,1.02316821,25800.0,25797.0,1.550525]
[1693926608507,0.27197121,25800.0,25798.0,0.776253]
[1693926609793,0.24797121,25800.0,25798.0,0.775253]
[1693926610204,0.27197121,25800.0,25798.0,0.775253]
[1693926610628,0.24797121,25800.0,25798.0,0.775253]
[1693926610899,0.24719943,25800.0,25798.0,0.775253]
[1693926611135,0.24719943,25800.0,25799.0,0.40664527]
[1693926611136,0.024,25800.0,25799.0,0.40664527]
[1693926611339,0.024,25800.0,25799.0,2.73231127]
[1693926611699,0.024,25800.0,25799.0,3.50753427]
[1693926612642,0.024,25800.0,25799.0,2.73231127]
[1693926612846,0.024,25800.0,25799.0,1.550443]
[1693926613274,0.65420703,25802.0,25799.0,2.325666]
[1693926613484,0.65420703,25802.0,25799.0,2.326666]
[1693926613485,0.024,25800.0,25799.0,2.326666]
[1693926614114,0.65420703,25802.0,25799.0,2.325666]
[1693926614317,0.81301631,25802.0,25799.0,2.325666]
[1693926614521,0.83701631,25802.0,25799.0,2.326666]
[1693926615471,0.83701631,25802.0,25799.0,1.551443]
[1693926616823,1.61215031,25802.0,25799.0,1.551443]
[1693926619000,0.22184845,25801.0,25799.0,1.551443]
[1693926619357,0.40394906,25801.0,25799.0,1.551443]
[1693926619767,0.56130928,25802.0,25799.0,2.325666]
[1693926620191,0.024,25801.0,25799.0,2.326666]
[1693926620817,0.4025,25802.0,25799.0,2.326666]
[1693926620818,0.4025,25802.0,25799.0,2.325666]
[1693926620967,0.4265,25802.0,25799.0,2.326666]
[1693926621181,0.64111233,25802.0,25799.0,2.326666]
[1693926621542,0.61711233,25802.0,25799.0,2.325666]
[1693926623194,0.024,25801.0,25799.0,2.327666]
[1693926623589,0.61711233,25802.0,25799.0,2.325666]
[1693926624092,0.4265,25802.0,25799.0,2.327666]
[1693926624312,0.24607998,25801.0,25799.0,2.327666]
[1693926626906,0.24607998,25801.0,25799.0,1.552443]
[1693926627267,0.24607998,25801.0,25799.0,2.325666]
[1693926627606,0.27007998,25801.0,25799.0,1.552443]
[1693926628160,0.02,25797.0,25793.0,0.155114]
[1693926628371,2.09194338,25796.0,25788.0,0.775534]
[1693926628580,0.1925,25795.0,25786.0,0.02]
[1693926628787,2.32626,25793.0,25786.0,1.551202]
[1693926628992,0.15465811,25792.0,25791.0,0.09208904]
[1693926629192,1.653168,25792.0,25791.0,0.09208904]
[1693926629391,1.95867434,25792.0,25791.0,0.09208904]
[1693926629886,1.95867434,25792.0,25787.0,0.09208904]
[1693926630084,0.1023,25790.0,25786.0,0.86768804]
[1693926630290,0.25695811,25790.0,25786.0,0.86768804]
[1693926630443,0.25695811,25790.0,25786.0,0.775599]
[1693926630653,0.1023,25790.0,25786.0,1.46838293]
[1693926630848,0.2677,25791.0,25787.0,0.38664527]
[1693926631073,0.2677,25791.0,25788.0,0.775548]
[1693926631280,0.002,25790.0,25789.0,0.3]
[1693926632011,0.2677,25791.0,25789.0,0.3]
[1693926632165,0.2697,25791.0,25789.0,0.3]
[1693926632375,0.02063582,25790.0,25789.0,0.322]
[1693926633262,0.002,25790.0,25789.0,0.322]
[1693926633463,0.02143386,25790.0,25789.0,0.322]
[1693926634054,0.02143386,25790.0,25789.0,2.27969327]
[1693926634495,0.004,25790.0,25789.0,2.27969327]
[1693926634871,0.02343711,25790.0,25789.0,2.27969327]
[1693926635724,0.02343711,25790.0,25789.0,3.05521727]
[1693926635924,0.02343711,25790.0,25789.0,3.13465727]
[1693926636125,0.02343711,25790.0,25789.0,3.12949727]
[1693926636325,0.004,25790.0,25789.0,3.12805727]
[1693926636476,0.004,25790.0,25789.0,3.12727727]
[1693926636659,0.004,25790.0,25789.0,3.12199727]
[1693926636839,0.004,25790.0,25789.0,3.12091727]
[1693926637045,0.004,25790.0,25789.0,3.12097727]
[1693926637286,0.004,25790.0,25789.0,3.05521727]
[1693926638416,0.004,25790.0,25789.0,0.72864527]
[1693926638818,0.02352167,25790.0,25789.0,0.70864527]
[1693926639019,0.02352167,25790.0,25789.0,2.27969327]
[1693926639218,0.02352167,25790.0,25789.0,3.05521727]
[1693926639422,0.004,25790.0,25789.0,3.05521727]
[1693926639797,0.02352167,25790.0,25789.0,3.05521727]
[1693926640702,0.02352167,25790.0,25789.0,2.27969327]
[1693926640921,0.02352167,25790.0,25789.0,1.50416927]
[1693926641761,0.02352167,25790.0,25789.0,0.322]
[1693926642169,0.02352167,25790.0,25789.0,0.022]
[1693926642988,0.07354519,25790.0,25789.0,0.022]
[1693926644843,0.07354519,25790.0,25789.0,0.322]
[1693926646058,0.28432848,25790.0,25789.0,0.322]
[1693926646299,1.97181648,25790.0,25789.0,0.022]
[1693926647611,2.53652719,25790.0,25789.0,0.022]
[1693926647837,2.75929978,25790.0,25789.0,0.022]
[1693926648247,2.92317246,25790.0,25789.0,0.022]
[1693926648977,3.15648791,25790.0,25789.0,0.022]
[1693926649178,3.10246439,25790.0,25788.0,0.23120413]
[1693926649354,0.38664527,25789.0,25788.0,0.23120413]
[1693926649529,2.71321727,25789.0,25788.0,0.23120413]
[1693926649707,2.73255373,25789.0,25788.0,0.23120413]
[1693926650114,3.119199,25789.0,25788.0,0.23120413]
[1693926650314,3.119199,25789.0,25781.0,1.075763]
[1693926650490,2.326813,25787.0,25782.0,0.3]
[1693926650689,0.15465811,25786.0,25782.0,0.3]
[1693926650902,1.84242611,25786.0,25782.0,0.3]
[1693926651102,0.14490606,25785.0,25782.0,0.3]
[1693926651312,1.98981482,25785.0,25782.0,0.3]
[1693926651514,1.98981482,25785.0,25780.0,0.3]
[1693926651756,0.2491,25784.0,25780.0,0.3]
[1693926651932,0.40375811,25784.0,25780.0,0.3]
[1693926652141,0.2491,25784.0,25780.0,1.075792]
[1693926653093,0.1024,25783.0,25780.0,1.075792]
[1693926653231,0.1024,25783.0,25782.0,0.022]
[1693926653434,0.1024,25783.0,25780.0,1.075792]
[1693926653846,0.1024,25783.0,25780.0,1.097792]
[1693926654057,0.1024,25783.0,25780.0,1.075792]
[1693926654480,0.1044,25783.0,25782.0,0.022]
[1693926654684,0.1024,25783.0,25780.0,1.075792]
[1693926655303,0.1044,25783.0,25780.0,1.075792]
[1693926656273,0.1044,25783.0,25780.0,0.39244463]
[1693926656616,0.1064,25783.0,25780.0,0.41444463]
[1693926656780,0.3246079,25783.0,25780.0,0.322]
[1693926659037,1.11808025,25783.0,25780.0,0.022]
[1693926659241,0.1024,25781.0,25780.0,0.022]
[1693926659402,2.58435311,25781.0,25780.0,0.022]
[1693926659604,2.90018335,25781.0,25780.0,0.022]
[1693926660008,2.90018335,25781.0,25775.0,0.019998]
[1693926660240,0.1024,25777.0,25775.0,0.019998]
[1693926660491,0.25705811,25777.0,25775.0,0.019998]
[1693926660739,0.1024,25777.0,25775.0,0.019998]
[1693926661478,0.01881799,25776.0,25775.0,0.319998]
[1693926662109,0.01881799,25776.0,25775.0,0.019998]
[1693926662320,0.01881799,25776.0,25775.0,0.319998]
[1693926662728,0.02081799,25776.0,25775.0,0.4124127]
[1693926663237,0.02081799,25776.0,25775.0,0.4324127]
[1693926663496,0.02081799,25776.0,25775.0,0.4124127]
[1693926663942,0.02081799,25776.0,25775.0,3.26929297]
[1693926663943,0.02281799,25776.0,25775.0,3.26929297]
[1693926664152,0.02081799,25776.0,25775.0,3.32171297]
[1693926664356,0.02281799,25776.0,25775.0,3.24893827]
[1693926664571,0.02081799,25776.0,25775.0,3.24779827]
[1693926664758,0.2524,25780.0,25775.0,3.22941827]
[1693926664999,0.005,25776.0,25775.0,3.26041638]
[1693926665216,0.02087041,25776.0,25775.0,2.858693]
[1693926665438,0.002,25776.0,25775.0,2.858933]
[1693926665640,0.002,25776.0,25775.0,2.108368]
[1693926665841,0.004,25776.0,25775.0,3.403813]
[1693926666053,0.004,25776.0,25775.0,5.11672854]
[1693926666257,0.002,25776.0,25775.0,5.08940854]
[1693926666466,0.002,25776.0,25775.0,5.09192854]
[1693926666684,0.002,25776.0,25775.0,5.09860854]
[1693926666891,0.002,25776.0,25775.0,5.08520854]
[1693926667089,0.002,25776.0,25775.0,5.08424854]
[1693926667310,0.9892,25784.0,25777.0,0.002]
[1693926667473,0.25898641,25783.0,25779.0,1.553644]
[1693926667696,0.25898641,25783.0,25780.0,0.3]
[1693926667909,0.01595168,25782.0,25780.0,0.3]
[1693926669277,0.02995168,25782.0,25780.0,0.3]
[1693926669609,0.02995168,25782.0,25780.0,0.301]
[1693926670025,0.02995168,25782.0,25780.0,0.3]
[1693926670431,0.03295168,25782.0,25780.0,0.3]
[1693926673810,0.03295168,25782.0,25781.0,0.02]
[1693926674732,0.01895168,25782.0,25781.0,0.02]
[1693926675071,0.03295168,25782.0,25781.0,0.02]
[1693926675747,0.02995168,25782.0,25781.0,0.02]